bitfinex/quotes_ETHUSD_20260308
["timestamp","ask_amount","ask_price","bid_price","bid_amount"]
[1772928001175,0.001,1969.1,1968.9,0.46227653]
[1772928005280,0.001,1969.1,1968.9,1.73201281]
[1772928006265,1.27031134,1969.6,1969.0,0.5]
[1772928006459,0.001,1969.6,1969.0,0.5]
[1772928007236,1.27030335,1969.6,1969.0,0.5]
[1772928007436,0.001,1969.6,1969.2,0.5]
[1772928009445,0.001,1969.6,1969.3,1.76948661]
[1772928009839,0.001,1969.6,1969.3,0.5]
[1772928011940,0.001,1969.6,1969.4,1.26942215]
[1772928015678,0.001,1969.6,1969.4,0.5]
[1772928019279,0.001,1969.6,1969.4,1.76938678]
[1772928021478,0.001,1969.6,1969.4,1.77048678]
[1772928021981,0.001,1969.5,1969.4,1.77048678]
[1772928028191,0.001,1969.5,1969.4,0.5011]
[1772928028492,0.001,1969.5,1969.4,1.77052215]
[1772928038371,0.001,1969.8,1969.5,0.4995]
[1772928039193,0.001,1969.8,1969.6,1.402]
[1772928039711,0.001,1969.8,1969.6,3.17078138]
[1772928041075,0.001,1969.8,1969.6,1.9015]
[1772928043698,0.001,1969.8,1969.6,3.17079117]
[1772928045413,0.001,1969.7,1969.6,3.17079117]
[1772928045772,0.001,1969.8,1969.6,3.17079117]
[1772928045773,0.00153886,1970.0,1969.7,0.4995]
[1772928046072,1.26877791,1970.4,1969.7,0.4995]
[1772928046073,0.001,1970.3,1969.7,0.4995]
[1772928046594,0.001,1970.4,1969.7,0.4995]
[1772928047497,0.001,1970.4,1969.9,0.4995]
[1772928047691,0.002,1970.6,1970.1,0.4995]
[1772928050201,0.002,1970.6,1970.1,1.26893366]
[1772928050386,0.002,1970.6,1970.2,0.4995]
[1772928051977,0.001,1970.6,1970.2,0.4995]
[1772928052184,0.001,1970.6,1970.0,6.49188792]
[1772928052185,0.001,1970.6,1970.4,0.4995]
[1772928056888,0.002,1970.6,1970.2,1.7683667]
[1772928057083,0.001,1970.5,1970.0,0.4995]
[1772928057398,0.001,1970.4,1970.0,1.9225]
[1772928058295,0.001,1970.4,1970.1,0.4995]
[1772928059409,0.001,1970.4,1969.9,0.4995]
[1772928059583,0.001,1970.4,1970.0,1.424]
[1772928061115,0.02544877,1970.5,1970.0,1.91840927]
[1772928061289,0.02444877,1970.4,1970.0,3.18744232]
[1772928062124,0.02544877,1970.6,1970.2,0.49780741]
[1772928063213,0.02544877,1970.6,1970.3,1.2688423]
[1772928064012,0.02544877,1970.6,1970.3,1.7683423]
[1772928069496,0.001,1970.5,1970.3,1.7683423]
[1772928071500,0.001,1970.5,1970.3,0.4995]
[1772928071700,0.001,1970.4,1970.3,1.428]
[1772928072742,0.002,1970.5,1970.3,1.428]
[1772928081844,0.002,1970.5,1970.4,0.0011]
[1772928082565,0.001,1970.5,1970.4,0.0011]
[1772928087878,0.001,1970.5,1970.4,0.5006]
[1772928091953,0.001,1970.6,1970.4,1.76937791]
[1772928092158,0.002,1970.7,1970.4,0.0011]
[1772928092361,0.002,1970.7,1970.4,0.5006]
[1772928094124,0.001,1970.6,1970.4,0.0011]
[1772928095062,0.001,1970.7,1970.4,0.5006]
[1772928096722,0.001,1970.7,1970.5,1.26871352]
[1772928096927,0.001,1970.7,1970.5,1.76821352]
[1772928098955,0.002,1970.7,1970.4,1.26987661]
[1772928099259,0.002,1970.7,1970.4,1.76937661]
[1772928103257,0.001,1970.7,1970.5,0.4995]
[1772928105388,0.001,1970.7,1970.6,1.26864914]
[1772928106187,0.001,1970.7,1970.6,1.76814914]
[1772928106693,0.001,1970.8,1970.6,1.26864914]
[1772928106899,0.001,1970.8,1970.5,0.0011]
[1772928107065,0.001,1970.8,1970.5,1.26980547]
[1772928109795,0.001,1970.8,1970.5,0.0011]
[1772928110186,1.32227244,1971.0,1970.5,0.5006]
[1772928110703,0.001,1970.9,1970.5,0.5006]
[1772928112402,0.001,1970.9,1970.5,1.76930961]
[1772928114161,0.001,1970.9,1970.5,1.26980961]
[1772928114362,0.001,1970.9,1970.6,0.4995]
[1772928117803,0.001,1970.9,1970.6,0.5005]
[1772928118008,0.002,1970.8,1970.6,0.5005]
[1772928119301,0.001,1970.7,1970.6,0.001]
[1772928119499,0.001,1970.7,1970.5,0.0011]
[1772928123596,0.002,1970.8,1970.5,0.5011]
[1772928128225,0.002,1970.8,1970.5,1.7698107]
[1772928128390,0.002,1970.8,1970.5,0.5011]
[1772928131021,0.002,1970.8,1970.6,0.0011]
[1772928131193,0.001,1970.7,1970.6,0.0011]
[1772928133834,0.002,1971.1,1970.7,0.5]
[1772928136015,0.002,1971.1,1970.9,0.5]
[1772928136519,5.07179878,1971.7,1970.9,0.5]
[1772928138204,5.07179878,1971.7,1971.0,0.5]
[1772928140939,5.07179878,1971.7,1971.0,1.2683901]
[1772928141108,5.07179878,1971.7,1971.1,0.5]
[1772928143637,0.002,1971.6,1971.2,0.5]
[1772928145535,0.002,1971.6,1971.1,1.76830076]
[1772928146133,0.002,1971.6,1971.1,1.26830076]
[1772928146333,0.002,1971.6,1971.2,0.5]
[1772928148446,0.002,1971.6,1971.2,0.53917702]
[1772928149240,0.002,1971.6,1971.0,0.501]
[1772928156442,0.002,1971.6,1971.1,0.5]
[1772928156636,0.002,1971.6,1971.1,0.53922682]
[1772928162261,0.002,1971.6,1971.2,0.5]
[1772928164150,0.002,1971.6,1971.3,0.53922284]
[1772928166257,0.002,1971.6,1971.3,0.03922284]
[1772928166456,0.002,1971.6,1971.0,0.501]
[1772928167654,0.002,1971.6,1971.1,0.001]
[1772928167849,0.002,1971.6,1971.1,0.501]
[1772928168065,0.002,1971.5,1971.1,0.501]
[1772928170832,1.26729862,1972.7,1971.5,0.502]
[1772928171036,1.26729862,1972.7,1971.5,0.5]
[1772928171266,2.78729862,1972.7,1971.5,0.5]
[1772928172291,2.78729862,1972.7,1971.7,0.5]
[1772928173273,2.78729862,1972.7,1971.9,0.5]
[1772928174972,1.26729862,1972.7,1971.9,0.5]
[1772928175143,1.529,1972.6,1971.9,0.5]
[1772928175775,1.26742712,1972.5,1972.0,0.5]
[1772928176370,5.43426368,1972.8,1972.0,0.5]
[1772928176371,5.06944384,1972.7,1972.0,0.5]
[1772928177249,6.60244384,1972.7,1972.0,0.5]
[1772928177875,6.60244384,1972.7,1972.1,0.5]
[1772928181278,5.06944384,1972.7,1972.1,0.5]
[1772928181491,1.539,1972.6,1972.1,0.5]
[1772928181963,0.001,1972.6,1972.1,0.5]
[1772928182266,1.541,1972.6,1972.1,0.5]
[1772928182885,0.001,1972.6,1972.1,0.5]
[1772928183089,0.001,1972.6,1972.2,0.5]
[1772928184778,0.001,1972.6,1972.2,0.53922657]
[1772928185079,0.001,1972.6,1972.2,0.5]
[1772928186368,0.47379407,1972.5,1971.8,0.48357551]
[1772928186574,2.01679407,1972.5,1971.8,0.48357551]
[1772928187095,0.47379407,1972.4,1971.8,0.48357551]
[1772928187453,0.51304091,1972.4,1971.8,0.48357551]
[1772928187654,0.47379407,1972.4,1971.8,0.48357551]
[1772928187874,0.51304091,1972.4,1971.8,0.48357551]
[1772928188656,1.26755564,1972.3,1971.9,0.48357551]
[1772928189683,1.74134971,1972.3,1971.9,0.48357551]
[1772928189978,0.47379407,1972.2,1971.9,0.48357551]
[1772928190148,0.47379407,1972.2,1971.7,0.48357551]
[1772928190350,0.47379407,1972.2,1971.6,0.4877463]
[1772928191086,1.74147826,1972.1,1971.6,0.4877463]
[1772928191875,1.74147826,1972.1,1971.7,0.48357551]
[1772928192670,0.47379407,1972.0,1971.7,0.48357551]
[1772928193575,1.26781276,1971.9,1971.7,0.48357551]
[1772928193755,1.26781276,1971.9,1971.6,0.4877463]
[1772928193952,1.74160683,1971.9,1971.6,0.4877463]
[1772928194350,1.74160683,1971.9,1971.7,0.001]
[1772928195805,0.47379407,1972.0,1971.7,0.48457551]
[1772928199296,1.26781276,1971.9,1971.7,0.48457551]
[1772928203272,1.74167113,1971.8,1971.7,0.001]
[1772928204599,0.47379407,1971.8,1971.7,0.001]
[1772928205709,1.74167113,1971.8,1971.7,0.001]
[1772928207018,0.47379407,1971.7,1971.3,0.48357551]
[1772928207587,1.26800568,1971.6,1971.3,0.48357551]
[1772928207979,1.26800568,1971.6,1971.5,0.001]
[1772928208879,1.74178261,1971.7,1971.5,0.001]
[1772928209100,0.47379407,1971.7,1971.5,0.001]
[1772928209278,2.81892291,1971.8,1971.5,0.001]
[1772928209279,0.51304091,1971.8,1971.5,0.48457551]
[1772928210300,1.78096516,1971.8,1971.5,0.48457551]
[1772928212810,0.03924684,1971.8,1971.5,0.48457551]
[1772928212999,3.31326015,1971.9,1971.6,0.47848951]
[1772928213188,3.31325464,1971.9,1971.6,0.47848951]
[1772928213706,1.76125584,1971.9,1971.6,0.47848951]
[1772928215414,0.49343919,1971.9,1971.6,0.47848951]
[1772928218216,0.49343919,1971.9,1971.6,1.74644496]
[1772928218787,0.002,1972.0,1971.7,0.47848951]
[1772928219721,0.002,1972.0,1971.8,0.47848951]
[1772928221402,0.002,1971.9,1971.8,0.47848951]
[1772928225490,0.002,1972.1,1972.0,0.47848951]
[1772928228002,0.002,1972.3,1972.1,0.47848951]
[1772928233246,0.002,1972.3,1972.1,0.48950659]
[1772928233604,0.002,1972.3,1972.1,0.47848951]
[1772928235308,0.002,1972.3,1972.1,0.47948951]
[1772928235612,0.002,1972.2,1972.1,0.47948951]
[1772928240753,0.002,1972.2,1972.1,1.7471737]
[1772928240937,0.49343919,1972.5,1972.1,1.7471737]
[1772928241126,0.49343919,1972.5,1972.2,0.01101652]
[1772928241855,0.4924987,1972.4,1972.2,0.01101652]
[1772928243562,0.45739123,1972.5,1972.2,0.4710496]
[1772928243858,1.72482078,1972.5,1972.2,0.4710496]
[1772928244360,0.45739123,1972.4,1972.2,0.01101652]
[1772928244528,0.45739123,1972.4,1972.1,0.001]
[1772928247458,0.45739123,1972.4,1972.1,0.46103308]
[1772928249157,0.45739123,1972.4,1972.2,0.001]
[1772928249327,0.002,1972.3,1972.2,0.001]
[1772928250543,0.002,1972.3,1972.2,0.46103308]
[1772928251547,0.002,1972.3,1972.2,1.72865299]
[1772928251753,0.45739123,1972.6,1972.3,0.46003308]
[1772928252071,0.45739123,1972.6,1972.2,1.7286509]
[1772928252357,0.45739123,1972.6,1972.2,0.46103308]
[1772928253126,0.45739123,1972.6,1972.2,1.72864739]
[1772928253460,0.45739123,1972.6,1972.3,0.46003308]
[1772928253663,1.72475728,1972.6,1972.3,0.46003308]
[1772928255562,1.76400412,1972.6,1972.3,0.46003308]
[1772928262773,1.76400412,1972.6,1972.3,0.46103308]
[1772928263079,0.002,1972.5,1972.3,0.46103308]
[1772928269051,0.45739123,1972.4,1972.3,0.001]
[1772928269450,0.002,1972.5,1972.3,0.001]
[1772928269650,0.45939123,1972.5,1972.3,0.001]
[1772928270548,0.002,1972.5,1972.3,0.46103308]
[1772928276396,0.002,1972.5,1972.4,0.001]
[1772928285403,0.002,1972.5,1972.4,0.47056206]
[1772928300618,0.47013992,1972.9,1972.5,0.46956206]
[1772928300918,0.47013992,1972.9,1972.4,0.001]
[1772928301709,0.45721774,1972.7,1972.3,0.001]
[1772928301912,0.45721774,1972.5,1972.1,0.001]
[1772928302888,0.45721774,1972.5,1972.2,0.001]
[1772928303091,0.49217089,1972.4,1972.2,0.001]
[1772928304025,0.44217089,1972.4,1972.2,0.001]
[1772928304823,1.70966723,1972.4,1972.2,0.001]
[1772928305528,0.44217089,1972.4,1972.2,0.001]
[1772928306023,0.49217089,1972.5,1972.2,0.001]
[1772928306324,0.49217089,1972.5,1972.2,0.48924496]
[1772928307920,0.002,1972.5,1972.2,0.48924496]
[1772928308312,0.002,1972.5,1972.2,1.75686348]
[1772928308623,0.002,1972.5,1972.3,0.48824496]
[1772928309944,0.49170975,1973.0,1972.5,0.48824496]
[1772928310107,0.49170975,1973.0,1972.7,0.48824496]
[1772928310308,0.00153886,1973.0,1972.7,0.48824496]
[1772928311020,1.75882109,1973.0,1972.7,0.48824496]
[1772928311215,0.49170975,1973.0,1972.7,0.48824496]
[1772928315217,0.002,1972.9,1972.8,0.48824496]
[1772928316147,0.49217089,1973.2,1972.9,0.48824496]
[1772928316335,0.002,1973.2,1972.9,0.48824496]
[1772928317339,0.002,1973.2,1972.9,1.26716583]
[1772928317644,1.2668491,1973.4,1973.0,0.48824496]
[1772928318217,1.26672071,1973.6,1973.0,0.48824496]
[1772928319352,1.26672071,1973.6,1973.2,0.48824496]
[1772928319759,1.75684592,1973.7,1973.2,0.48824496]
[1772928319926,1.75674002,1973.9,1973.2,0.48824496]
[1772928320122,0.49017089,1973.8,1973.2,0.48824496]
[1772928321854,0.49017089,1973.6,1973.0,0.48990158]
[1772928322545,0.49017089,1973.6,1973.1,0.48824496]
[1772928324353,1.26678489,1973.5,1973.1,0.48824496]
[1772928324854,0.49017089,1973.4,1972.8,0.48824496]
[1772928326622,0.49017089,1973.2,1972.8,0.48824496]
[1772928327841,0.49017089,1973.2,1973.0,0.001]
[1772928328203,0.49017089,1973.2,1972.6,0.48975669]
[1772928328364,0.49017089,1973.2,1972.9,0.001]
[1772928328823,0.49017089,1973.0,1972.9,0.001]
[1772928332564,0.49017089,1973.0,1972.2,5.07139537]
[1772928332565,0.4530259,1972.9,1972.5,0.45055868]
[1772928334747,1.72024945,1972.9,1972.5,0.45055868]
[1772928336174,0.4530259,1972.9,1972.6,0.45055868]
[1772928336349,0.4530259,1973.1,1972.6,0.45055868]
[1772928336966,0.4530259,1973.1,1972.7,0.45055868]
[1772928337144,1.71997664,1973.3,1972.7,0.45055868]
[1772928337659,0.4530259,1973.2,1972.7,0.45055868]
[1772928339566,0.4530259,1973.2,1972.8,0.45055868]
[1772928340066,1.72001131,1973.2,1972.8,0.45055868]
[1772928340567,0.4530259,1973.2,1972.8,0.45055868]
[1772928340756,0.4530259,1973.3,1973.0,0.45055868]
[1772928340963,1.71994889,1973.3,1973.0,0.45055868]
[1772928341645,0.002,1973.1,1973.0,0.45055868]
[1772928342938,0.002,1973.1,1972.9,0.45055868]
[1772928344180,0.4550259,1973.1,1972.8,0.001]
[1772928348659,1.7221001,1973.1,1972.8,0.001]
[1772928353755,1.7221001,1973.1,1972.8,0.45155868]
[1772928353985,1.6721001,1973.1,1972.8,0.45155868]
[1772928354892,0.4530259,1973.0,1972.8,0.001]
[1772928355252,0.4550259,1973.0,1972.8,0.001]
[1772928356860,1.72019605,1972.9,1972.8,0.001]
[1772928359290,0.4530259,1972.8,1972.5,0.001]
[1772928361764,0.46843253,1972.7,1972.5,0.001]
[1772928364766,1.73573226,1972.7,1972.5,0.001]
[1772928364962,0.46843253,1972.7,1972.5,0.001]
[1772928368974,0.46843253,1972.7,1972.6,0.001]
[1772928369679,0.47043253,1972.7,1972.6,0.001]
[1772928374376,0.37043253,1972.7,1972.6,0.001]
[1772928376400,1.63773115,1972.7,1972.6,0.001]
[1772928381107,1.26918109,1972.9,1972.6,0.47711338]
[1772928382104,0.002,1972.9,1972.6,0.5162637]
[1772928382609,1.26917455,1972.9,1972.6,0.5162637]
[1772928382914,1.26917455,1972.9,1972.7,0.001]
[1772928383086,1.26917455,1972.9,1972.7,0.47711338]
[1772928385209,1.26917455,1972.9,1972.7,0.001]
[1772928387686,0.45842038,1972.4,1972.1,0.001]
[1772928388254,0.45842038,1972.4,1972.1,0.47711338]
[1772928389819,1.72597602,1972.3,1972.1,0.001]
[1772928393929,1.72597602,1972.3,1971.6,0.001]
[1772928393930,0.48397446,1972.2,1971.6,0.001]
[1772928394222,1.569,1972.1,1971.7,0.48292047]
[1772928394926,2.05297446,1972.1,1971.7,0.48292047]
[1772928396027,1.26774847,1972.0,1971.7,0.48292047]
[1772928397702,1.75172293,1972.0,1971.7,0.48292047]
[1772928398334,1.75172293,1972.0,1971.7,0.48192047]
[1772928399432,1.75172571,1972.0,1971.8,0.001]
[1772928399635,1.75170012,1972.1,1971.8,0.48292047]
[1772928401898,1.572,1972.3,1972.0,0.48192047]
[1772928402105,1.30678991,1972.2,1972.0,0.48192047]
[1772928402305,0.03915032,1972.2,1972.0,0.48292047]
[1772928402515,1.75150331,1972.4,1972.0,0.48192047]
[1772928402803,1.75150331,1972.4,1972.1,0.48292047]
[1772928403000,1.75150331,1972.4,1972.1,0.48192047]
[1772928404928,0.52312478,1972.3,1972.0,0.001]
[1772928405106,0.52312478,1972.3,1972.1,0.001]
[1772928405308,0.52312478,1972.3,1972.0,0.001]
[1772928406838,1.7515803,1972.3,1972.0,0.001]
[1772928408639,1.7515803,1972.3,1972.0,0.48292047]
[1772928408822,0.002,1972.2,1972.0,0.48292047]
[1772928409714,0.002,1972.2,1972.0,0.48192047]
[1772928410239,0.002,1972.2,1972.1,0.001]
[1772928411012,0.48597446,1972.2,1971.9,0.001]
[1772928413562,1.26768419,1972.1,1971.9,0.001]
[1772928415220,0.48397446,1972.0,1971.9,0.001]
[1772928416223,1.75172293,1972.0,1971.9,0.001]
[1772928425374,1.75172293,1972.0,1971.6,0.49731981]
[1772928428279,1.30700537,1971.9,1971.6,0.49731981]
[1772928432495,1.30700537,1971.9,1971.7,0.001]
[1772928434306,1.30700537,1971.9,1971.7,0.49731981]
[1772928435695,0.03915032,1971.9,1971.7,0.49731981]
[1772928435900,0.002,1972.1,1971.9,0.49631981]
[1772928436996,1.2696911,1972.1,1971.9,0.49631981]
[1772928437394,0.002,1972.1,1971.9,0.49631981]
[1772928437597,1.26968777,1972.1,1971.9,0.49631981]
[1772928438102,0.002,1972.1,1971.9,0.49631981]
[1772928444708,0.002,1972.1,1972.0,0.001]
[1772928455014,0.48862152,1972.1,1971.7,0.001]
[1772928455837,0.48862152,1972.1,1971.7,0.47344598]
[1772928456615,0.48862152,1972.1,1972.0,0.001]
[1772928457114,1.75630571,1972.1,1972.0,0.001]
[1772928462532,0.48862152,1972.1,1972.0,0.001]
[1772928462721,1.26968419,1972.1,1972.0,0.001]
[1772928463623,0.002,1972.1,1972.0,0.47344598]
[1772928468436,0.002,1972.1,1972.0,0.001]
[1772928468629,0.48862152,1972.1,1972.0,0.001]
[1772928475752,0.002,1972.1,1972.0,0.001]
[1772928480364,1.75630571,1972.1,1972.0,0.001]
[1772928485672,0.48862152,1972.1,1972.0,0.001]
[1772928486179,1.75630571,1972.1,1972.0,0.001]
[1772928486968,1.26968419,1972.1,1972.0,0.001]
[1772928487142,0.002,1972.1,1972.0,0.001]
[1772928492168,0.002,1972.1,1972.0,0.480663]
[1772928492471,0.002,1972.3,1972.1,0.479663]
[1772928492767,1.2694338,1972.5,1972.0,0.001]
[1772928492982,1.76128706,1972.5,1972.1,0.479663]
[1772928494369,0.49385326,1972.5,1972.1,0.479663]
[1772928494671,1.7612864,1972.5,1972.1,0.479663]
[1772928495372,0.49385326,1972.5,1972.1,1.74733152]
[1772928495584,1.76128496,1972.5,1972.1,0.479663]
[1772928495950,0.002,1972.5,1972.2,0.479663]
[1772928496838,0.49385326,1972.5,1972.2,0.479663]
[1772928499068,0.002,1972.5,1972.2,0.479663]
[1772928503580,0.49385326,1972.5,1972.2,0.479663]
[1772928503775,0.49385326,1972.5,1972.3,0.001]
[1772928504084,0.002,1972.4,1972.3,0.001]
[1772928522493,0.002,1972.4,1972.3,0.4601507]
[1772928525801,0.002,1972.5,1972.3,0.4601507]
[1772928526013,1.26936287,1972.6,1972.3,0.4601507]
[1772928526373,0.002,1972.6,1972.3,0.4601507]
[1772928526802,0.002,1972.6,1972.4,0.001]
[1772928528605,0.46581172,1972.6,1972.4,0.001]
[1772928531578,1.73317555,1972.6,1972.4,0.001]
[1772928532201,0.002,1972.6,1972.4,0.4601507]
[1772928539224,0.002,1972.6,1972.5,0.001]
[1772928549138,0.002,1972.6,1972.5,0.48812878]
[1772928557945,0.002,1972.7,1972.5,0.48812878]
[1772928561945,0.00153886,1973.0,1972.5,1.26837601]
[1772928562151,0.00153886,1973.0,1972.5,1.28922917]
[1772928562354,0.49979795,1973.0,1972.6,0.48712878]
[1772928564015,1.76690483,1973.0,1972.6,1.75448756]
[1772928564224,0.49979795,1973.0,1972.6,1.75448756]
[1772928564639,0.00153886,1973.0,1972.7,0.48712878]
[1772928565548,0.002,1972.9,1972.7,0.48712878]
[1772928567847,0.50025909,1972.9,1972.6,0.001]
[1772928568222,0.49825909,1972.8,1972.6,0.001]
[1772928570357,0.002,1972.9,1972.6,0.48812878]
[1772928576847,0.002,1972.8,1972.6,0.48812878]
[1772928581182,0.002,1972.8,1972.6,1.75545231]
[1772928581980,0.002,1972.8,1972.7,0.45970028]
[1772928582184,0.002,1972.9,1972.7,0.45970028]
[1772928582472,0.00153886,1973.0,1972.7,0.45970028]
[1772928584760,0.49778778,1973.0,1972.7,0.45970028]
[1772928585178,0.49778778,1973.0,1972.6,1.72805377]
[1772928586259,0.49624892,1972.9,1972.6,0.46070028]
[1772928587184,0.49624892,1972.9,1972.6,1.72806235]
[1772928587386,0.49624892,1972.9,1972.6,0.46070028]
[1772928588386,1.26717888,1972.9,1972.7,0.001]
[1772928588682,1.26717888,1972.9,1972.5,0.001]
[1772928588683,0.49824892,1972.8,1972.5,0.001]
[1772928590460,0.49624892,1972.7,1972.5,0.001]
[1772928591484,0.49824892,1972.8,1972.5,0.46070028]
[1772928595767,0.002,1972.8,1972.6,0.45970028]
[1772928596674,0.49824892,1972.8,1972.5,0.46070028]
[1772928599891,0.00153886,1973.0,1972.6,0.45970028]
[1772928600203,0.49778778,1973.0,1972.6,1.72705753]
[1772928601270,0.49778778,1973.0,1972.6,0.45970028]
[1772928601669,0.49778778,1973.0,1972.6,0.46070028]
[1772928601889,0.002,1972.8,1972.6,1.72806215]
[1772928602690,0.002,1972.9,1972.6,1.72806215]
[1772928605893,0.002,1972.9,1972.7,0.48235617]
[1772928606482,0.49778778,1973.0,1972.7,0.48235617]
[1772928607194,0.49778778,1973.0,1972.7,1.74961099]
[1772928608898,0.00153886,1973.0,1972.8,0.48235617]
[1772928610301,0.00153886,1973.0,1972.7,0.48235617]
[1772928610502,0.48812589,1973.0,1972.7,0.48235617]
[1772928612910,1.2668978,1973.4,1972.8,0.48235617]
[1772928613077,0.48658703,1973.5,1972.8,0.48235617]
[1772928613891,0.48658703,1973.7,1972.8,0.48235617]
[1772928614107,0.48658703,1973.6,1972.8,0.48235617]
[1772928614478,0.002,1972.9,1972.8,0.48235617]
[1772928614708,0.002,1973.0,1972.8,0.48235617]
[1772928614906,0.48658703,1973.6,1972.8,0.48235617]
[1772928615209,0.002,1973.2,1973.0,0.48235617]
[1772928615406,0.48658703,1973.7,1973.0,0.48235617]
[1772928617303,0.48658703,1973.7,1973.2,0.48235617]
[1772928618010,1.26660459,1973.8,1973.2,0.48235617]
[1772928618308,0.48658703,1973.8,1973.2,0.48235617]
[1772928619280,1.75318507,1973.8,1973.3,1.26691329]
[1772928619510,0.48658703,1973.8,1973.4,0.48235617]
[1772928620510,0.48812589,1974.0,1973.4,0.48235617]
[1772928621082,1.75289118,1974.3,1973.4,0.48235617]
[1772928621287,0.48658703,1974.2,1973.4,0.48235617]
[1772928621510,0.48658703,1974.2,1973.6,0.48235617]
[1772928622184,0.48658703,1974.6,1973.7,0.48235617]
[1772928623515,0.48658703,1974.4,1973.9,0.48235617]
[1772928624631,0.48658703,1974.4,1973.5,0.48235617]
[1772928625320,0.48658703,1974.4,1973.6,0.48235617]
[1772928625715,0.48658703,1974.2,1973.8,0.48235617]
[1772928628109,0.48658703,1974.2,1973.7,0.00934265]
[1772928628110,0.48658703,1974.1,1973.7,0.00934265]
[1772928628307,0.48658703,1974.1,1973.6,0.48235617]
[1772928628608,0.46880768,1974.1,1973.6,1.74907381]
[1772928628804,0.46880768,1974.1,1973.6,1.26671764]
[1772928629000,0.46880768,1974.1,1973.7,0.48235617]
[1772928631895,1.75305106,1974.0,1973.7,0.48235617]
[1772928632126,0.48658703,1974.0,1973.7,0.48235617]
[1772928632426,1.75749708,1974.1,1973.7,0.48235617]
[1772928632602,0.49104816,1974.0,1973.7,0.48235617]
[1772928632798,0.49104816,1974.0,1973.5,3.26675085]
[1772928633004,0.49104816,1974.0,1973.5,2.0]
[1772928633619,0.49104816,1974.0,1973.5,2.46898649]
[1772928634120,1.75753309,1974.0,1973.5,3.73575721]
[1772928634327,0.49104816,1973.9,1973.5,3.73575721]
[1772928634622,0.49104816,1973.9,1973.6,0.46898649]
[1772928641330,0.49104816,1973.9,1973.7,0.001]
[1772928649629,1.26656045,1973.9,1973.7,0.001]
[1772928649925,0.49104816,1973.8,1973.5,2.0]
[1772928651102,0.49104816,1973.8,1973.5,2.46898649]
[1772928655539,0.49104816,1973.8,1973.6,0.001]
[1772928657341,0.19104816,1973.8,1973.6,0.001]
[1772928659334,0.49104816,1973.7,1973.5,2.001]
[1772928659708,0.49104816,1973.8,1973.5,2.001]
[1772928660041,0.49104816,1973.8,1973.5,2.46998649]
[1772928660945,0.49104816,1973.9,1973.6,0.46898649]
[1772928661546,1.75758684,1973.9,1973.6,0.46898649]
[1772928661927,0.46946838,1973.8,1973.5,2.001]
[1772928662241,0.46946838,1973.8,1973.5,2.46616805]
[1772928662925,0.46946838,1973.8,1973.5,2.001]
[1772928663425,0.46946838,1973.8,1973.5,2.45135416]
[1772928664624,1.73607279,1973.8,1973.5,2.001]
[1772928664821,0.49058329,1973.7,1973.5,2.001]
[1772928666417,0.49058329,1973.8,1973.5,2.001]
[1772928668219,0.002,1974.0,1973.5,2.001]
[1772928668220,0.07412138,1973.9,1973.5,2.001]
[1772928668445,0.07412138,1973.8,1973.5,3.26777421]
[1772928668618,0.07412138,1973.8,1973.5,2.001]
[1772928669424,0.07412138,1973.8,1973.6,0.001]
[1772928669624,0.07612138,1973.8,1973.6,0.001]
[1772928670931,0.07269327,1973.8,1973.6,0.001]
[1772928674650,0.05890302,1973.8,1973.6,0.001]
[1772928674840,0.0534243,1973.8,1973.6,0.001]
[1772928675045,0.04857473,1973.8,1973.6,0.001]
[1772928675245,0.04232418,1973.8,1973.6,0.001]
[1772928675444,0.03874914,1973.8,1973.6,0.001]
[1772928675753,0.02906074,1973.8,1973.6,0.001]
[1772928676058,0.02277915,1973.8,1973.6,0.001]
[1772928676228,0.02052318,1973.8,1973.6,0.001]
[1772928676556,0.01279665,1973.8,1973.6,0.001]
[1772928676761,0.01120569,1973.8,1973.6,0.001]
[1772928677955,0.00820507,1973.8,1973.6,0.001]
[1772928683366,0.00820507,1973.8,1973.7,0.001]
[1772928689982,0.002,1973.8,1973.7,0.001]
[1772928693607,0.00820507,1973.8,1973.7,0.001]
[1772928696900,1.27479742,1973.8,1973.7,0.001]
[1772928697074,0.00720507,1973.7,1973.5,2.001]
[1772928698106,1.27392165,1973.7,1973.5,2.001]
[1772928698610,0.00520507,1973.6,1973.5,2.001]
[1772928700176,0.00520507,1973.6,1973.3,0.001]
[1772928709313,0.00520507,1973.6,1973.4,0.001]
[1772928713014,1.2738616,1973.7,1973.4,0.49839746]
[1772928713241,1.26865653,1973.7,1973.3,0.48548218]
[1772928713524,0.47014624,1973.6,1973.3,0.48548218]
[1772928716024,1.26678489,1973.5,1973.3,0.48548218]
[1772928716339,1.26678489,1973.5,1973.2,0.48548218]
[1772928716542,1.73693113,1973.5,1973.2,0.48548218]
[1772928717087,1.26678489,1973.5,1973.2,0.48548218]
[1772928717387,1.06672071,1973.6,1973.3,0.48448218]
[1772928718321,1.26865653,1973.7,1973.3,0.48448218]
[1772928721924,1.26865653,1973.7,1973.4,0.46780492]
[1772928722129,6.33569349,1973.7,1973.4,0.46780492]
[1772928722925,0.002,1973.6,1973.4,0.46780492]
[1772928726420,5.06903696,1973.6,1973.4,0.46780492]
[1772928728324,0.002,1973.6,1973.4,0.46780492]
[1772928729498,5.06903696,1973.6,1973.5,0.45137495]
[1772928730036,0.002,1973.7,1973.5,0.45137495]
[1772928736635,0.002,1973.7,1973.5,0.45237495]
[1772928736934,0.002,1973.6,1973.5,0.45237495]
[1772928740333,0.002,1973.7,1973.6,0.45766911]
[1772928743130,0.002,1973.8,1973.6,1.26672071]
[1772928743337,0.002,1973.8,1973.7,0.45766911]
[1772928743835,0.002,1973.8,1973.6,1.26672071]
[1772928743836,0.48597857,1974.1,1973.6,1.26672071]
[1772928744024,1.75234728,1974.2,1973.7,0.45766911]
[1772928745535,1.26636871,1974.2,1973.7,1.26661105]
[1772928745739,1.26636871,1974.2,1973.8,0.45766911]